Cogmind - Beta 15 @@@ ROGUE MODE // 2025.07.07 @ 20:46:31 Player: Windjigo Result: Destroyed by TU-0OL(R) with Subdweller Machine Gun Performance ------------- Evolutions (0) 0 Regions Visited (2) 400 Robots Destroyed (24) 120 Value Destroyed (447) 447 Prototype IDs (2) 40 Alien Tech Used (0) 0 Bonus (0) 0 TOTAL SCORE: 1007 Bonus ------- None Cogmind --------- Core Integrity 0/250 Matter 183/300 Energy 69/100 System Corruption 0% Temperature Cool (0) Movement Core (400) Ox7 Location -10/Subcaves Parts ------- > --- POWER (1) -------- (None) > --- PROPULSION (2) --- (None) > --- UTILITY (2) ------ Large Storage Unit Targeting Computer > --- WEAPON (2) ------- Assault Rifle > --- INVENTORY (15) --- Ion Engine Ion Engine Light Nuclear Core Light Nuclear Core Wheel Compact Wheel Medium Storage Unit Sensor Array Signal Interpreter Grenade Launcher Datajack Mining Laser Peak State ------------ > --- POWER ------------ Ion Engine > --- PROPULSION ------- Wheel Wheel > --- UTILITY ---------- Large Storage Unit Sensor Array > --- WEAPON ----------- Particle Gun Assault Rifle > --- INVENTORY -------- Ion Engine Ion Engine Light Nuclear Core Compact Wheel Medium Storage Unit Signal Interpreter Targeting Computer Small Laser Beam Cannon Grenade Launcher Mining Laser [Rating: 9] Favorites ----------- Power Ion Engine Engine Ion Engine Propulsion Wheel Wheel Wheel Utility Sensor Array Device Sensor Array Storage Large Storage Unit Processor Targeting Computer Protection Light Armor Plating Weapon Assault Rifle Energy Gun Particle Gun Energy Cannon Beam Cannon Ballistic Gun Assault Rifle Launcher Grenade Launcher Special Weapon Mining Laser Build | -11 -10 -10 ------- Run | Yrd Mat Sub Slots Evolved . | . . . Power . | . . . Propulsion . | . . . Utility . | . . . Weapon . | . . . Parts Attached 21 | 9 9 3 Power 2 | 2 . . Engine 2 | 2 . . Core . | . . . Reactor . | . . . Propulsion 4 | 2 2 . Treads . | . . . Leg . | . . . Wheel 4 | 2 2 . Hover . | . . . Flight . | . . . Utility 7 | 2 3 2 Device 2 | 1 1 . Storage 3 | 1 2 . Processor 1 | . . 1 Hackware . | . . . Protection 1 | . . 1 Artifact . | . . . Weapon 8 | 3 4 1 Energy Gun 4 | 2 2 . Energy Cannon 1 | . . 1 Ballistic Gun 1 | 1 . . Ballistic Cannon . | . . . Launcher 1 | . 1 . Special Weapon 1 | . 1 . Impact Weapon . | . . . Slashing Weapon . | . . . Piercing Weapon . | . . . Special Melee Weapon . | . . . Unidentified Prototypes . | . . . Parts Lost 8 | . 1 7 Power 1 | . . 1 Propulsion 3 | . 1 2 Utility 1 | . . 1 Weapon 3 | . . 3 Highest Loss Streak 7 | . 1 7 To Critical Strikes . | . . . Average Backups 11 | 2 11 14 Power 3 | . 3 4 Propulsion 1 | . 1 2 Utility 3 | . 3 3 Weapon 3 | 1 3 3 Tool/Special . | . . . Unused Backups 8 | . 1 7 Power 5 | . 1 4 Propulsion 1 | . . 1 Utility 1 | . . 1 Weapon . | . . . Tool/Special 1 | . . 1 Average Slot Usage (%) 97 | . 99 84 Engine 13 | . 14 9 Wheel 27 | . 27 22 Device 13 | . 14 9 Storage 14 | . 14 14 Energy Gun 14 | . 14 18 Ballistic Gun 12 | . 12 3 Peak Build Rating 9 | 7 9 9 Average Rating 8 | 3 8 7 On Entrance 5 | . 7 9 Naked Turns . | . . . Heaviest Build 32 | 14 32 30 Greatest Support 26 | 26 26 20 Greatest Overweight (x) 1 | 1 1 1 Average Overweight (x) . | . . 1 Largest Inventory Capacity 15 | 8 15 15 Average Capacity 12 | 6 13 15 Most Carried 15 | 5 15 15 Average Carried 11 | 2 11 14 Final Capacity 15 | 8 15 15 Final Carried 15 | 2 15 12 Class Distribution -------------------- 100% | Mutant Dominant Class ---------------- Mutant | -10/Materials Mutant | -10/Subcaves Resources | -11 -10 -10 ----------- Run | Yrd Mat Sub Matter Collected 586 | 260 326 . Remotely . | . . . Salvage Created 482 | 18 427 37 Parts 38 | 3 34 1 Haulers Intercepted 2 | . 2 . Recyclers Shooed . | . . . Parts Field Recycled . | . . . Retrieved Matter . | . . . Parts Self-Destructed . | . . . Prevented . | . . . Kills | -11 -10 -10 ------- Run | Yrd Mat Sub Combat Hostiles Destroyed 16 | . 14 2 Guns 5 | . 5 . AOE 11 | . 9 2 Classes Destroyed 7 | 1 5 1 Builder 1 | . 1 . Tunneler 2 | 1 1 . Hauler 2 | . 2 . Watcher 3 | . 3 . Swarmer 9 | . 9 . Grunt 5 | . 5 . Subdweller 2 | . . 2 Best Kill Streak 7 | 1 7 2 Combat Bots Only 6 | . 6 2 Max Kills in Single Turn 5 | 1 5 2 Gunslinging . | . . . Exploded 4 | . 4 2 Melee . | . . . Uniques/NPCs Destroyed . | . . . Combat | -11 -10 -10 -------- Run | Yrd Mat Sub Hostile Shots Fired 74 | . 49 25 Missed 18 | . 14 4 Hits 56 | . 35 21 Projectile 56 | . 35 21 AOE 3 | . . 3 Critical Strikes 1 | . 1 . Damage Taken 1110 | . 464 646 Core 257 | . 88 169 Absorbed by Shields . | . . . Regen/Repaired (Parts) 75 | . 75 . Core Remaining (%) 100 | 100 . . Volleys Fired 56 | 1 39 16 Largest 2 | 1 2 2 Hottest 105 | 40 100 105 Shots Fired 98 | 1 72 25 Gun 79 | 1 63 15 Cannon 8 | . . 8 Launcher 9 | . 7 2 Special 2 | . 2 . Kinetic 41 | . 30 11 Thermal 48 | 1 35 12 Explosive 9 | . 7 2 Electromagnetic . | . . . Robot Hit Streak 10 | 1 6 10 Robot Miss Streak 4 | . 4 2 Penetration Max . | . . . Secondary Targets 1 | . 1 . Max Gunslinging Chain 1 | . 1 . Shots Hit Robots 61 | 1 40 20 Core Hits 41 | 1 34 6 Critical Kills . | . . . Critical Parts Destroyed . | . . . Critical Strikes 1 | . 1 . Burn 1 | . 1 . Melee Attacks . | . . . Impact . | . . . Slashing . | . . . Piercing . | . . . Sneak Attacks . | . . . Combat Hostiles . | . . . Follow-up Attacks . | . . . Damage Inflicted 1463 | 12 1006 445 Guns 615 | 12 442 161 Cannons 70 | . . 70 Explosions 778 | . 564 214 Melee . | . . . Ramming . | . . . Kinetic 346 | . 230 116 Thermal 339 | 12 212 115 Explosive 778 | . 564 214 Electromagnetic . | . . . Impact . | . . . Slashing . | . . . Piercing . | . . . Highest Corruption . | . . . Average Corruption . | . . . Corruption Purged . | . . . Corruption Blocked . | . . . Overload Shots . | . . . Overflow Damage 62 | . 62 . Projectiles . | . . . Explosions 62 | . 62 . Melee . | . . . Knockbacks . | . . . Impact . | . . . Kinetic . | . . . Secondary . | . . . Self-Inflicted Damage 122 | . 43 79 Shots 4 | . 2 2 Rammed . | . . . Targets Rammed . | . . . Kicked . | . . . Crushed . | . . . Highest Temperature 99 | . 99 . Average Temperature 38 | . 38 . Received Heat Transfer 183 | . 153 30 Siege Activations . | . . . Martial Activations . | . . . Shielding Activations . | . . . Robots Disrupted . | . . . Combat Hostiles . | . . . Robots Corrupted . | . . . Combat Hostiles . | . . . Parts Fried . | . . . Impact Corruptions . | . . . Robots Melted . | . . . Combat Hostiles . | . . . Parts Melted 1 | . 1 . Heat Transferred 858 | 25 573 260 Parts Sabotaged . | . . . Parts Stolen . | . . . Parts Stripped . | . . . Power Chain Reactions . | . . . Alert | -11 -10 -10 ------- Run | Yrd Mat Sub Maximum Alert Level . | . . . Low Security (%) 100 | 100 100 . Level 1 . | . . . Level 2 . | . . . Level 3 . | . . . Level 4 . | . . . Level 5 . | . . . High Security . | . . . Max Security . | . . . Peak Influence 156 | 5 156 . Initial . | . . . Average 42 | . 44 . Influence Increases 476 | 5 471 . Destroy 0b10 Robot/C 280 | . 280 . Destroy 0b10 Robot/NC 40 | 5 35 . Destroy Leader 60 | . 60 . Successful Hack 18 | . 18 . Select Force Hacks 30 | . 30 . Disable Machine 15 | . 15 . Destroy Structure 33 | . 33 . Influence Decreases 476 | 5 362 109 Entered New Map 53 | . . 53 Time Decay 387 | 5 352 30 Lost Part 36 | . 10 26 Squads Dispatched 3 | . 3 . Investigation 3 | . 3 . Extermination . | . . . Reinforcement . | . . . Assault . | . . . Garrison . | . . . Intercept . | . . . Searches Triggered . | . . . Construction Impeded . | . . . Haulers Reinforced . | . . . Active Scanning Responses . | . . . Cargo Convoy Interrupts . | . . . Stealth | -11 -10 -10 --------- Run | Yrd Mat Sub Distress Signals 2 | . 2 . Communications Jammed . | . . . Distress Signals . | . . . Times Spotted 28 | . 25 3 Peak Tracking Total 6 | . 6 3 Tactical Retreats . | . . . Traps | -11 -10 -10 ------- Run | Yrd Mat Sub Traps Triggered 2 | . 2 . Indirectly . | . . . Trap Hack Attempts . | . . . Triggered . | . . . Disarmed . | . . . Reprogrammed . | . . . Reused . | . . . Traps Extracted . | . . . Installed . | . . . Triggered . | . . . Machines | -11 -10 -10 ---------- Run | Yrd Mat Sub Machines Disabled 1 | . 1 . Max in Single Turn 1 | . 1 . Machines Repaired . | . . . Machines Dismantled . | . . . Machines Sabotaged . | . . . Overloaded Fab Kills . | . . . Hacking | -11 -10 -10 --------- Run | Yrd Mat Sub Machines Accessed 10 | . 10 . Terminals 8 | . 8 . Fabricators . | . . . Repair Stations 1 | . 1 . Recycling Units 1 | . 1 . Scanalyzers . | . . . Garrison Access . | . . . Total Hacks 25 | . 25 . Successful 14 | . 14 . Failed 11 | . 11 . Catastrophic 2 | . 2 . Database Lockouts . | . . . Manual 17 | . 17 . Terminals 21 | . 21 . Fabricators . | . . . Repair Stations 2 | . 2 . Recycling Units 2 | . 2 . Scanalyzers . | . . . Garrison Access . | . . . Terminal Hacks 3 | . 3 . Robot Analysis 2 | . 2 . Prototype ID Bank 1 | . 1 . Fabricator Hacks . | . . . Repair Station Hacks 2 | . 2 . Scan Component 1 | . 1 . Repair 1 | . 1 . Recycling Unit Hacks 1 | . 1 . Retrieve Components 1 | . 1 . Scanalyzer . | . . . Garrison Access Hacks . | . . . Unauthorized Hacks 8 | . 8 . Terminals 7 | . 7 . Botnet 7 | . 7 . Fabricators . | . . . Repair Stations . | . . . Recycling Units 1 | . 1 . Tunnel 1 | . 1 . Scanalyzers . | . . . Garrison Access . | . . . Data Cores Recovered . | . . . Used . | . . . Hacking Detections 9 | . 9 . Full Trace Events 1 | . 1 . Feedback Events . | . . . Feedback Blocked . | . . . Robot Schematics Acquired . | . . . Robots Built . | . . . Authchips . | . . . Time . | . . . Total Robot Build Rating . | . . . Part Schematics Acquired . | . . . Parts Built . | . . . Authchips . | . . . Time . | . . . Total Part Build Rating . | . . . Parts Repaired 1 | . 1 . Time 26 | . 26 . Parts Recycled . | . . . Recycled Matter . | . . . Retrieved Matter . | . . . Retrieved Components 2 | . 2 . Parts Scanalyzed . | . . . Part Schematics Acquired . | . . . Parts Damaged . | . . . Bothacking | -11 -10 -10 ------------ Run | Yrd Mat Sub Used RIF Installer . | . . . Robots Hacked . | . . . Non-combat . | . . . Combat . | . . . Robot Hacks Applied . | . . . Relay Couplers Released . | . . . Fabnet Peak Effective % . | . . . Robots Rewired . | . . . Allies Hacked . | . . . Hacks Repelled . | . . . Allies | -11 -10 -10 -------- Run | Yrd Mat Sub Total Allies . | . . . Largest Group . | . . . Highest-Rated Group . | . . . Highest-Rated Ally . | . . . Total Orders . | . . . Ally Attacks . | . . . Total Damage . | . . . Kills . | . . . Allies Corrupted . | . . . Allies Melted . | . . . Intel | -11 -10 -10 ------- Run | Yrd Mat Sub Active Infowar (turns) 1148 | 4 1074 70 Sensors 1057 | . 987 70 Seismic 91 | 4 87 . Robot Analysis Total 2 | . 2 . Derelict Logs Recovered . | . . . Drone Launches . | . . . Drone Recoveries . | . . . Exploration | -11 -10 -10 ------------- Run | Yrd Mat Sub Turns Passed 1255 | 62 1077 116 Spaces Moved 1002 | 53 891 58 Core 20 | 20 . . Treads . | . . . Legs . | . . . Wheels 982 | 33 891 58 Hover . | . . . Flight . | . . . Fastest Speed 50 | 50 90 95 Average Speed 93 | 77 94 95 Slowest Speed 105 | 100 105 95 Overloaded Moves . | . . . Propulsion Burnouts . | . . . Robots Hopped . | . . . Potential Cave-ins . | . . . Cave-ins Triggered . | . . . Exploration Rate (%) 36 | 3 99 6 Regions Visited 2 Branch Regions 1 Pre-discovered Areas 1 | . 1 . Known Exits Taken . | . . . Unknown Exits Taken 2 | 1 1 . Scrap Searched . | . . . Spaces Dug 1 | . 1 . Terrain Destroyed 37 | . 36 1 Melee . | . . . Projectile 1 | . 1 . AOE 36 | . 35 1 Terrain Rammed . | . . . Walls Destroyed . | . . . Machines Disabled . | . . . Actions | -11 -10 -10 --------- Run | Yrd Mat Sub Total 1212 | 72 1047 93 Wait 89 | . 76 13 Move 1000 | 52 890 58 Hop . | . . . Pick Up 26 | 7 19 . Fast Attach 3 | 2 1 . Attach 13 | 6 4 3 Detach 1 | 1 . . Swap 17 | 2 12 3 Drop 7 | 1 6 . Fire 56 | 1 39 16 Melee . | . . . Ram . | . . . Kick . | . . . Crush . | . . . Escape Stasis . | . . . Rewire . | . . . Trap . | . . . Miscellaneous . | . . . Route ------- -11/Scrapyard -10/Materials (discovered 6 exits: [*Mat x3] / [*Min x2] / [*Sub]) -10/Subcaves (discovered 1 exit: [Scr]) History --------- Turn | Location | Event 31 | -11/Scrapyard | Discovered new exit (range 16) 63 | -11/Scrapyard | Entered Materials 305 | -10/Materials | Discovered new exit (range 5) 317 | -10/Materials | Build established: Mutant 341 | -10/Materials | Repaired Assault Rifle 650 | -10/Materials | Discovered new exit (range 16) 722 | -10/Materials | Discovered new exit (range 11) 920 | -10/Materials | Discovered new exit (range 16) 963 | -10/Materials | Derelicts attacked the area 963 | -10/Materials | Discovered new exit (range 16) 1131 | -10/Materials | Discovered new exit (range 11) 1140 | -10/Materials | Entered Subcaves 1141 | -10/Subcaves | Approached by a straggling Scientist 1205 | -10/Subcaves | Scientist uncovered a shortcut to Scraptown 1214 | -10/Subcaves | Ambushed by Subdweller buried in earth 1224 | -10/Subcaves | Core integrity fell below 50% 1253 | -10/Subcaves | Core integrity fell below 20% 1256 | -10/Subcaves | Destroyed by TU-0OL(R) with Subdweller Machine Gun Last Messages --------------- back to the UFD." AC-KDW(c): "I think it's somewhere west of here" 01205_ AC-KDW(c): "Hah, right again, there it is!" 01210_ Ion Engine destroyed. 01212_ Wheel destroyed. 01214_ Particle Gun destroyed. 01215_ D4-H44(R): "FREEEEDUMB!" 01219_ Sml. Laser destroyed. 01220_ Lgt. Armor Plating destroyed. 01226_ D4-H44(R) destroyed. 01226_ IA-179(R) destroyed. 01227_ Subatomizers dissect the Sub. Laser. 01237_ TU-0OL(R) affixes Scrap Shield Fragment to Scrap Shield. 01238_ Subatomizers dissect the Sub. Laser. 01242_ Beam Cannon destroyed. 01247_ TU-0OL(R) affixes Scrap Shield Fragment to Scrap Shield. 01248_ Wheel destroyed. Map ----- +----------------------------------------------------+ | ?????????????????????????????????????????????????? | | ?????????????????????????????????????????????????? | | ?????????????????????????????????????????????????? | | ?????????????????????????????????????????????????? | | ?????????????????????????????????????????????????? | | ?????????????????????????????????????????????????? | | ?????????????????????????????????????????????????? | | ?????????????????????????????????????????????????? | | ?????????????????????????????????????????????????? | | ?????????????????????????????????????????????????? | | ?????????????????????????????????????????????????? | | ?????????????????????????????????????????????????? | | ?????????????????????????????????????????????????? | | ?????????????????????????????????????????????????? | | ?????????????????????????????????????????????????? | | ?????????????? ??????????????????????????????????# | | ????????????? ?????????????????????????????????# | | ????????????? ????????????????????????????????# | | ????????????? ???????????????????????????????# | | ??????????????#; ;?????###??????????????????????# | | ???????????? #; ;##### #####??????############# | | ???????????# ; ; ; #?###### # ## | | ???????????# ### # | | ???????????# ; | | ????????????#; & # # ## | | ??????????????# @R ############# | | ??????????????# ### [% ####???????????? | | ??????????????>?????## ##??????????????? | | ????????????????????# ##???????????????? | | ????????????????????## ;##????????????????? | | ?????????????????????## ##?????????????????? | | ??????????????????????#### ;??????????????????? | | ????????????????????????# #?????????????????? | | ????????????????????????# ##?????????????????? | | ???????????????????????? % #??????????????????? | | ???????????????????????# ??????????????????? | | ??????????????????????? #??????????????????? | | ?????????????????????? ##??????????????????? | | ?????????????????????? %#???????????????????? | | ?????????????????????? %#???????????????????? | | ????????????????????? ????????????????????? | | ???????????????????????? ????????????????????? | | ?????????????????????????? ????????????????????? | | ?????????????????????????????????????????????????? | | ?????????????????????????????????????????????????? | | ?????????????????????????????????????????????????? | | ?????????????????????????????????????????????????? | | ?????????????????????????????????????????????????? | | ?????????????????????????????????????????????????? | | ?????????????????????????????????????????????????? | +----------------------------------------------------+ Best States ------------- Heat Dissipation 25 Energy Generation 10 Energy Capacity 250 Matter Stores 300 Matter Capacity 300 Sight Range 16 Robot Scan Range 14 Terrain Scan Density 10 Armor Coverage 150 Evasion (%) 50 Targeting Accuracy 5 Item Schematics ----------------- None Robot Schematics ------------------ None Fabricated ------------ Nothing Repaired ---------- Assault Rifle | 25% | -10/Materials Alien Tech Used ----------------- None Achievements -------------- None Challenges ------------ None Game ------ Seed ExperimentalBombRifle Manual? 0 Play Time 00:13:30 Cumulative 98.5 hours Start 2025.07.07 @ 20:34:14 End 2025.07.07 @ 20:46:31 Sessions 1 Manual Loads 0 Difficulty Rogue Special Mode None Game No. 74 Rogue 74 Adventurer 0 Explorer 0 Win Type - Total 0 Types 0/0/0/0/0/0/0/0/0/0 Lore% 59 Gallery% 48 Achievement% 44 Wizard Run 0 Options --------- Layout 1 ASCII 0 Keyboard 0 Movement Mouse Keybinds 0 Fullscreen 1 Font 24/Smallcaps Map View 50x35 Zoom Use 0% Tactical HUD 1 Map Filters NONE Filters NONE Steam 1 RUN: deed5e6f-2f0a-4c53-a883-807aca99ef1d